fUSD/lending_fUSD_20250213
["ID","MTS","AMOUNT","RATE_DAILY","PERIOD"]
[352981858,1739475043980,-500.0,0.00013698,2]
[352981860,1739475043990,-500.0,0.00013698,2]
[352981861,1739475044000,-502.5346196,0.00013698,2]
[352981864,1739475044010,-619.9,0.00013698,2]
[352981865,1739475044019,-500.0,0.00013698,2]
[352981868,1739475044029,-500.0,0.00013698,2]
[352981870,1739475044039,-500.0,0.00013698,2]
[352981872,1739475044049,-326.06947678,0.00013698,2]
[352981874,1739475044058,-588.16,0.00013698,2]
[352981876,1739475044068,-546.31,0.00013698,2]
[352981878,1739475044078,-500.0,0.00013698,2]
[352981880,1739475044087,-830.4,0.00013698,2]
[352981882,1739475044096,-500.0,0.00013698,2]
[352981884,1739475044106,-500.0,0.00013698,2]
[352981886,1739475044116,-500.0,0.00013698,2]
[352981888,1739475044126,-500.0,0.00013698,2]
[352981890,1739475044136,-500.0,0.00013698,2]
[352981892,1739475044146,-712.02,0.00013698,2]
[352981894,1739475044155,-500.0,0.00013698,2]
[352981896,1739475044164,-500.0,0.00013698,2]
[352981898,1739475044174,-724.2,0.00013698,2]
[352981900,1739475044184,-500.0,0.00013698,2]
[352981902,1739475044195,-500.0,0.00013698,2]
[352981904,1739475044211,-151.0,0.00013698,2]
[352981906,1739475044224,-151.0,0.00013698,2]
[352981908,1739475044233,-345.41721478,0.00013698,2]
[352981910,1739475044243,-952.21,0.00013698,2]
[352981912,1739475044252,-500.0,0.00013698,2]
[352981914,1739475044261,-775.03,0.00013698,2]
[352981915,1739475044271,-500.0,0.00013698,2]
[352981918,1739475044280,-500.0,0.00013698,2]
[352981920,1739475044290,-762.98,0.00013698,2]
[352981922,1739475044299,-500.0,0.00013698,2]
[352981924,1739475044308,-500.92500471,0.00013698,2]
[352981925,1739475044317,-573.88,0.00013698,2]
[352981927,1739475044327,-624.29,0.00013698,2]
[352981930,1739475044336,-500.0,0.00013698,2]
[352981932,1739475044346,-2514.14,0.00013698,2]
[352981934,1739475044355,-500.0,0.00013698,2]
[352981936,1739475044364,-500.0,0.00013698,2]
[352981938,1739475044374,-500.0,0.00013698,2]
[352981940,1739475044384,-501.5322132,0.00013698,2]
[352981942,1739475044393,-745.85,0.00013698,2]
[352981944,1739475044403,-500.0,0.00013698,2]
[352981946,1739475044413,-500.0,0.00013698,2]
[352981948,1739475044423,-500.0,0.00013698,2]
[352981950,1739475044431,-500.0,0.00013698,2]
[352981952,1739475044441,-500.0,0.00013698,2]
[352981954,1739475044449,-500.0,0.00013698,2]
[352981956,1739475044459,-500.0,0.00013698,2]
[352981958,1739475044470,-1770.9,0.00013698,2]
[352981960,1739475044481,-503.50652354,0.00013698,2]
[352981962,1739475044490,-500.0,0.00013698,2]
[352981964,1739475044500,-500.0,0.00013698,2]
[352981966,1739475044510,-151.0,0.00013698,2]
[352981968,1739475044521,-500.0,0.00013698,2]
[352981970,1739475044531,-976.85,0.00013698,2]
[352981972,1739475044540,-500.0,0.00013698,2]
[352981974,1739475044551,-500.0,0.00013698,2]
[352981976,1739475044561,-500.0,0.00013698,2]
[352981978,1739475044571,-700.26,0.00013698,2]
[352981980,1739475044582,-500.0,0.00013698,2]
[352981982,1739475044592,-500.0,0.00013698,2]
[352981984,1739475044601,-1919.22,0.00013698,2]
[352981986,1739475044611,-500.0,0.00013698,2]
[352981988,1739475044620,-500.0,0.00013698,2]
[352981990,1739475044630,-901.17,0.00013698,2]
[352981992,1739475044639,-501.47122278,0.00013698,2]
[352981994,1739475044649,-498.52988441,0.00013698,2]
[352981996,1739475044658,-2037.16,0.00013698,2]
[352981998,1739475044667,-500.0,0.00013698,2]
[352982000,1739475044676,-687.13,0.00013698,2]
[352982002,1739475044686,-500.0,0.00013698,2]
[352982004,1739475044695,-500.0,0.00013698,2]
[352982006,1739475044704,-278.18356383,0.00013698,2]
[352982008,1739475044714,-500.0,0.00013698,2]
[352982010,1739475044724,-500.0,0.00013698,2]
[352982012,1739475044739,-1145.15,0.00013698,2]
[352982014,1739475044749,-581.75,0.00013698,2]
[352982016,1739475044758,-1572.74,0.00013698,2]
[352982018,1739475044767,-209.53516914,0.00013698,2]
[352982020,1739475044778,-500.0,0.00013698,2]
[352982022,1739475044787,-501.52107919,0.00013698,2]
[352982024,1739475044798,-725.91,0.00013698,2]
[352982026,1739475044809,-877.92,0.00013698,2]
[352982028,1739475044819,-151.0,0.00013698,2]
[352982030,1739475044828,-502.61424411,0.00013698,2]
[352982032,1739475044838,-178.013382,0.00013698,2]
[352982034,1739475044848,-500.0,0.00013698,2]
[352982036,1739475044857,-500.0,0.00013698,2]
[352982038,1739475044867,-500.0,0.00013698,2]
[352982040,1739475044878,-236.20403714,0.00013698,2]
[352982042,1739475044887,-500.0,0.00013698,2]
[352982044,1739475044897,-440.01874215,0.00013698,2]
[352982046,1739475044906,-473.8038456,0.00013698,2]
[352982048,1739475044915,-500.0,0.00013698,2]
[352982050,1739475044925,-500.0,0.00013698,2]
[352982052,1739475044935,-500.0,0.00013698,2]
[352982054,1739475044944,-719.35,0.00013698,2]
[352982056,1739475044954,-341.67245344,0.00013698,2]
[352982058,1739475044964,-3446.7,0.00013698,2]
[352982060,1739475044973,-639.1,0.00013698,2]
[352982062,1739475044983,-500.0,0.00013698,2]
[352982064,1739475044992,-813.77,0.00013698,2]
[352982066,1739475045001,-500.0,0.00013698,2]
[352982068,1739475045010,-2137.44,0.00013698,2]
[352982070,1739475045020,-500.0,0.00013698,2]
[352982072,1739475045029,-500.0,0.00013698,2]
[352982074,1739475045040,-500.0,0.00013698,2]
[352982076,1739475045050,-534.03,0.00013698,2]
[352982078,1739475045059,-500.0,0.00013698,2]
[352982080,1739475045069,-500.0,0.00013698,2]
[352982082,1739475045079,-500.0,0.00013698,2]
[352982084,1739475045088,-151.0,0.00013698,2]
[352982086,1739475045098,-222.95787822,0.00013698,2]
[352982088,1739475045108,-3190.37,0.00013698,2]
[352982090,1739475045117,-516.35,0.00013698,2]
[352982092,1739475045126,-500.0,0.00013698,2]
[352982094,1739475045136,-500.0,0.00013698,2]
[352982096,1739475045145,-1958.68,0.00013698,2]
[352982098,1739475045156,-500.0,0.00013698,2]
[352982100,1739475045168,-500.0,0.00013698,2]
[352982102,1739475045177,-1221.78,0.00013698,2]
[352982104,1739475045186,-500.0,0.00013698,2]
[352982106,1739475045196,-500.0,0.00013698,2]
[352982108,1739475045205,-2458.28,0.00013698,2]
[352982110,1739475045215,-500.0,0.00013698,2]
[352982112,1739475045225,-560.19,0.00013698,2]
[352982115,1739475045235,-500.0,0.00013698,2]
[352982117,1739475045245,-647.32,0.00013698,2]
[352982119,1739475045255,-500.0,0.00013698,2]
[352982121,1739475045265,-591.03,0.00013698,2]
[352982123,1739475045275,-500.0,0.00013698,2]
[352982125,1739475045285,-500.0,0.00013698,2]
[352982127,1739475045297,-500.0,0.00013698,2]
[352982129,1739475045307,-500.0,0.00013698,2]
[352982131,1739475045317,-151.0,0.00013698,2]
[352982133,1739475045327,-151.0,0.00013698,2]
[352982135,1739475045337,-502.14297666,0.00013698,2]
[352982137,1739475045346,-500.0,0.00013698,2]
[352982139,1739475045356,-1556.13,0.00013698,2]
[352982141,1739475045365,-530.90839102,0.00013698,2]
[352982143,1739475045375,-1513.41,0.00013698,2]
[352982145,1739475045384,-500.0,0.00013698,2]
[352982147,1739475045394,-500.0,0.00013698,2]
[352982149,1739475045404,-501.27845707,0.00013698,2]
[352982151,1739475045413,-1000.01,0.00013698,2]
[352982153,1739475045423,-500.0,0.00013698,2]
[352982155,1739475045432,-500.0,0.00013698,2]
[352982157,1739475045442,-500.0,0.00013698,2]
[352982159,1739475045451,-500.0,0.00013698,2]
[352982161,1739475045461,-500.0,0.00013698,2]
[352982163,1739475045471,-500.0,0.00013698,2]
[352982165,1739475045489,-500.0,0.00013698,2]
[352982167,1739475045499,-500.0,0.00013698,2]
[352982169,1739475045510,-500.0,0.00013698,2]
[352982171,1739475045520,-2028.54,0.00013698,2]
[352982173,1739475045531,-3409.92,0.00013698,2]
[352982175,1739475045543,-930.38,0.00013698,2]
[352982177,1739475045552,-3086.3,0.00013698,2]
[352982179,1739475045563,-500.0,0.00013698,2]
[352982181,1739475045573,-637.57,0.00013698,2]
[352982183,1739475045583,-500.0,0.00013698,2]
[352982185,1739475045592,-500.0,0.00013698,2]
[352982202,1739475045602,-500.0,0.00013698,2]
[352982205,1739475045761,-2588.14,0.00013698,2]
[352982207,1739475045771,-500.0,0.00013698,2]
[352982209,1739475045781,-500.0,0.00013698,2]
[352982211,1739475045791,-500.0,0.00013698,2]
[352982213,1739475045801,-500.0,0.00013698,2]
[352982215,1739475045811,-550.36,0.00013698,2]
[352982217,1739475045821,-1014.99,0.00013698,2]
[352982219,1739475045833,-500.0,0.00013698,2]
[352982221,1739475045843,-500.0,0.00013698,2]
[352982223,1739475045852,-3670.51,0.00013698,2]
[352982225,1739475045862,-358.39218107,0.00013698,2]
[352982227,1739475045871,-500.0,0.00013698,2]
[352982229,1739475045880,-1003.87,0.00013698,2]
[352982230,1739475045890,-500.0,0.00013698,2]
[352982233,1739475045899,-500.0,0.00013698,2]
[352982234,1739475045909,-500.0,0.00013698,2]
[352982236,1739475045919,-2182.31,0.00013698,2]
[352982238,1739475045928,-507.21306044,0.00013698,2]
[352982240,1739475045938,-2545.97,0.00013698,2]
[352982242,1739475045948,-1494.82,0.00013698,2]
[352982244,1739475045958,-500.0,0.00013698,2]
[352982246,1739475045967,-500.0,0.00013698,2]
[352982249,1739475045977,-500.0,0.00013698,2]
[352982251,1739475045987,-2931.75,0.00013698,2]
[352982252,1739475045996,-500.0,0.00013698,2]
[352982256,1739475046007,-500.0,0.00013698,2]
[352982258,1739475046016,-2737.88,0.00013698,2]
[352982262,1739475046027,-1132.54,0.00013698,2]
[352982265,1739475046037,-667.0,0.00013698,2]
[352982268,1739475046050,-500.0,0.00013698,2]
[352982271,1739475046059,-500.0,0.00013698,2]
[352982273,1739475046069,-2527.52,0.00013698,2]
[352982275,1739475046078,-500.0,0.00013698,2]
[352982276,1739475046087,-500.0,0.00013698,2]
[352982277,1739475046097,-1215.71,0.00013698,2]
[352982278,1739475046107,-500.0,0.00013698,2]
[352982279,1739475046116,-1595.94,0.00013698,2]
[352982280,1739475046125,-500.0,0.00013698,2]
[352982281,1739475046135,-500.0,0.00013698,2]
[352982282,1739475046144,-381.67163578,0.00013698,2]
[352982283,1739475046154,-501.41210496,0.00013698,2]
[352982284,1739475046163,-667.24,0.00013698,2]
[352982285,1739475046175,-595.70862409,0.00013698,2]
[352982286,1739475046184,-500.0,0.00013698,2]
[352982288,1739475046194,-500.0,0.00013698,2]
[352982290,1739475046203,-500.0,0.00013698,2]
[352982292,1739475046212,-562.41376018,0.00013698,2]
[352982295,1739475046221,-500.0,0.00013698,2]
[352982297,1739475046230,-500.0,0.00013698,2]
[352982299,1739475046239,-500.0,0.00013698,2]
[352982301,1739475046248,-1016.15,0.00013698,2]
[352982303,1739475046257,-428.1791229,0.00013698,2]
[352982306,1739475046266,-500.0,0.00013698,2]
[352982309,1739475046275,-2460.47,0.00013698,2]
[352982312,1739475046284,-1395.37,0.00013698,2]
[352982315,1739475046297,-500.0,0.00013698,2]
[352982317,1739475046306,-500.0,0.00013698,2]
[352982319,1739475046316,-500.0,0.00013698,2]
[352982321,1739475046325,-411.92028388,0.00013698,2]
[352982323,1739475046334,-500.0,0.00013698,2]
[352982325,1739475046343,-504.56213112,0.00013698,2]
[352982327,1739475046352,-507.33786608,0.00013698,2]
[352982329,1739475046362,-614.90147282,0.00013698,2]
[352982331,1739475046371,-541.27764644,0.00013698,2]
[352982333,1739475046380,-3656.76,0.00013698,2]
[352982334,1739475046390,-500.0,0.00013698,2]
[352982337,1739475046399,-500.0,0.00013698,2]
[352982339,1739475046408,-1790.89,0.00013698,2]
[352982341,1739475046419,-1052.8,0.00013698,2]
[352982343,1739475046429,-500.0,0.00013698,2]
[352982345,1739475046438,-510.787056,0.00013698,2]
[352982347,1739475046447,-1242.64,0.00013698,2]
[352982349,1739475046457,-500.0,0.00013698,2]
[352982351,1739475046469,-675.2,0.00013698,2]
[352982353,1739475046480,-500.0,0.00013698,2]
[352982355,1739475046495,-500.0,0.00013698,2]
[352982357,1739475046506,-360.90886,0.00013698,2]
[352982359,1739475046518,-360.90886,0.00013698,2]
[352982361,1739475046528,-500.0,0.00013698,2]
[352982364,1739475046539,-3668.44,0.00013698,2]
[352982365,1739475046552,-1539.64,0.00013698,2]
[352982368,1739475046563,-637.11,0.00013698,2]
[352982370,1739475046572,-1108.42,0.00013698,2]
[352982371,1739475046581,-360.90886,0.00013698,2]
[352982374,1739475046592,-360.90886,0.00013698,2]
[352982376,1739475046603,-500.0,0.00013698,2]
[352982378,1739475046613,-789.536407,0.00013698,2]
[352982380,1739475046623,-789.536407,0.00013698,2]
[352982382,1739475046634,-1175.11,0.00013698,2]
[352982383,1739475046644,-500.0,0.00013698,2]
[352982386,1739475046655,-3058.34,0.00013698,2]
[352982387,1739475046666,-500.0,0.00013698,2]
[352982390,1739475046677,-789.536407,0.00013698,2]
[352982392,1739475046687,-789.536407,0.00013698,2]
[352982394,1739475046699,-780.58,0.00013698,2]
[352982395,1739475046708,-500.0,0.00013698,2]
[352982398,1739475046719,-500.0,0.00013698,2]
[352982400,1739475046730,-610.29,0.00013698,2]
[352982402,1739475046740,-1056.17,0.00013698,2]
[352982404,1739475046749,-500.0,0.00013698,2]
[352982405,1739475046759,-151.0,0.00013698,2]
[352982408,1739475046770,-166.004963,0.00013698,2]
[352982410,1739475046779,-2187.98,0.00013698,2]
[352982412,1739475046788,-500.0,0.00013698,2]
[352982414,1739475046802,-510.02626075,0.00013698,2]
[352982416,1739475046811,-500.0,0.00013698,2]
[352982418,1739475046823,-500.0,0.00013698,2]
[352982420,1739475046834,-2040.68,0.00013698,2]
[352982422,1739475046844,-190.054601,0.00013698,2]
[352982424,1739475046855,-190.054601,0.00013698,2]
[352982426,1739475046865,-500.0,0.00013698,2]
[352982428,1739475046875,-500.0,0.00013698,2]
[352982430,1739475046885,-2159.87,0.00013698,2]
[352982433,1739475046896,-575.34,0.00013698,2]
[352982434,1739475046906,-925.06,0.00013698,2]
[352982437,1739475046917,-743.79,0.00013698,2]
[352982439,1739475046927,-500.0,0.00013698,2]
[352982441,1739475046937,-500.00002167,0.00013698,2]
[352982443,1739475046948,-500.0,0.00013698,2]
[352982445,1739475046957,-190.054601,0.00013698,2]
[352982447,1739475046967,-190.054601,0.00013698,2]
[352982449,1739475046978,-259.67784432,0.00013698,2]
[352982451,1739475046988,-500.0,0.00013698,2]
[352982453,1739475046998,-823.33,0.00013698,2]
[352982455,1739475047008,-511.99,0.00013698,2]
[352982457,1739475047018,-500.0,0.00013698,2]
[352982459,1739475047028,-500.0,0.00013698,2]
[352982461,1739475047041,-2037.06,0.00013698,2]
[352982463,1739475047053,-500.0,0.00013698,2]
[352982465,1739475047063,-1360.94,0.00013698,2]
[352982467,1739475047073,-500.0,0.00013698,2]
[352982469,1739475047083,-500.0,0.00013698,2]
[352982471,1739475047093,-500.0,0.00013698,2]
[352982473,1739475047103,-500.0,0.00013698,2]
[352982475,1739475047113,-500.0,0.00013698,2]
[352982477,1739475047123,-500.0,0.00013698,2]
[352982479,1739475047133,-500.0,0.00013698,2]
[352982481,1739475047143,-500.0,0.00013698,2]
[352982483,1739475047153,-802.49,0.00013698,2]
[352982485,1739475047163,-500.0,0.00013698,2]
[352982487,1739475047172,-500.0,0.00013698,2]
[352982489,1739475047182,-1155.5,0.00013698,2]
[352982491,1739475047195,-500.0,0.00013698,2]
[352982493,1739475047205,-500.0,0.00013698,2]
[352982495,1739475047215,-500.0,0.00013698,2]
[352982497,1739475047225,-500.0,0.00013698,2]
[352982499,1739475047234,-1376.21,0.00013698,2]
[352982501,1739475047243,-500.0,0.00013698,2]
[352982503,1739475047253,-500.0,0.00013698,2]
[352982505,1739475047264,-500.0,0.00013698,2]
[352982507,1739475047274,-637.08,0.00013698,2]
[352982509,1739475047284,-500.0,0.00013698,2]
[352982511,1739475047295,-502.29314947,0.00013698,2]
[352982513,1739475047305,-500.0,0.00013698,2]
[352982515,1739475047315,-500.0,0.00013698,2]
[352982517,1739475047325,-500.0,0.00013698,2]
[352982519,1739475047335,-2436.15,0.00013698,2]
[352982522,1739475047346,-501.27597749,0.00013698,2]
[352982524,1739475047356,-500.0,0.00013698,2]
[352982525,1739475047366,-500.0,0.00013698,2]
[352982527,1739475047376,-2924.42,0.00013698,2]
[352982529,1739475047386,-151.0,0.00013698,2]
[352982531,1739475047397,-500.0,0.00013698,2]
[352982534,1739475047407,-151.0,0.00013698,2]
[352982535,1739475047417,-500.0,0.00013698,2]
[352982537,1739475047427,-981.7,0.00013698,2]
[352982539,1739475047437,-500.0,0.00013698,2]
[352982541,1739475047447,-500.0,0.00013698,2]
[352982543,1739475047457,-1534.91,0.00013698,2]
[352982545,1739475047469,-796.87,0.00013698,2]
[352982547,1739475047479,-503.60903029,0.00013698,2]
[352982550,1739475047490,-500.0,0.00013698,2]
[352982552,1739475047499,-500.0,0.00013698,2]
[352982554,1739475047510,-500.0,0.00013698,2]
[352982556,1739475047520,-500.0,0.00013698,2]
[352982558,1739475047530,-1260.55,0.00013698,2]
[352982560,1739475047542,-500.0,0.00013698,2]
[352982562,1739475047553,-1202.4,0.00013698,2]
[352982564,1739475047564,-2281.4,0.00013698,2]
[352982566,1739475047574,-666.14,0.00013698,2]
[352982568,1739475047583,-778.09,0.00013698,2]
[352982570,1739475047593,-1409.62,0.00013698,2]
[352982572,1739475047602,-1429.87,0.00013698,2]
[352982574,1739475047612,-500.0,0.00013698,2]
[352982576,1739475047622,-500.0,0.00013698,2]
[352982578,1739475047632,-500.0,0.00013698,2]
[352982580,1739475047642,-1040.07,0.00013698,2]
[352982582,1739475047652,-500.0,0.00013698,2]
[352982584,1739475047662,-1640.83,0.00013698,2]
[352982586,1739475047672,-801.15,0.00013698,2]
[352982588,1739475047681,-500.0,0.00013698,2]
[352982590,1739475047691,-1104.4,0.00013698,2]
[352982592,1739475047701,-500.0,0.00013698,2]
[352982594,1739475047710,-281.09137846,0.00013698,2]
[352982596,1739475047720,-500.0,0.00013698,2]
[352982598,1739475047729,-579.37,0.00013698,2]
[352982600,1739475047739,-500.0,0.00013698,2]
[352982602,1739475047748,-507.70320438,0.00013698,2]
[352982604,1739475047758,-500.0,0.00013698,2]
[352982606,1739475047767,-500.0,0.00013698,2]
[352982608,1739475047777,-750.073748,0.00013698,2]
[352982610,1739475047786,-2266.57,0.00013698,2]
[352982612,1739475047798,-997.98,0.00013698,2]
[352982630,1739475047808,-500.0,0.00013698,2]
[352982632,1739475047963,-2690.65,0.00013698,2]
[352982634,1739475047973,-995.51,0.00013698,2]
[352982636,1739475047983,-1200.0,0.00013698,2]
[352982638,1739475047993,-750.073748,0.00013698,2]
[352982640,1739475048003,-750.073748,0.00013698,2]
[352982642,1739475048013,-553.83,0.00013698,2]
[352982644,1739475048021,-500.0,0.00013698,2]
[352982646,1739475048032,-1782.01,0.00013698,2]
[352982648,1739475048043,-1239.18,0.00013698,2]
[352982650,1739475048055,-500.0,0.00013698,2]
[352982652,1739475048064,-500.0,0.00013698,2]
[352982654,1739475048074,-500.0,0.00013698,2]
[352982656,1739475048084,-500.0,0.00013698,2]
[352982658,1739475048094,-500.0,0.00013698,2]
[352982660,1739475048104,-552.72,0.00013698,2]
[352982662,1739475048114,-500.0,0.00013698,2]
[352982664,1739475048124,-1282.95,0.00013698,2]
[352982666,1739475048134,-500.0,0.00013698,2]
[352982668,1739475048144,-500.0,0.00013698,2]
[352982670,1739475048153,-500.0,0.00013698,2]
[352982672,1739475048164,-500.0,0.00013698,2]
[352982674,1739475048173,-500.0,0.00013698,2]
[352982676,1739475048183,-624.24,0.00013698,2]
[352982678,1739475048192,-500.0,0.00013698,2]
[352982680,1739475048202,-500.0,0.00013698,2]
[352982682,1739475048212,-2850.49,0.00013698,2]
[352982684,1739475048223,-500.0,0.00013698,2]
[352982686,1739475048233,-1002.9,0.00013698,2]
[352982688,1739475048244,-1467.1,0.00013698,2]
[352982689,1739475048254,-500.93784646,0.00013698,2]
[352982692,1739475048265,-1400.22,0.00013698,2]
[352982694,1739475048276,-500.0,0.00013698,2]
[352982696,1739475048288,-500.58348483,0.00013698,2]
[352982698,1739475048300,-504.69128952,0.00013698,2]
[352982700,1739475048311,-2108.26,0.00013698,2]
[352982702,1739475048322,-709.63,0.00013698,2]
[352982704,1739475048331,-500.0,0.00013698,2]
[352982706,1739475048341,-500.0,0.00013698,2]
[352982707,1739475048352,-489.36944589,0.00013698,2]
[352982710,1739475048362,-500.0,0.00013698,2]
[352982712,1739475048373,-500.0,0.00013698,2]
[352982714,1739475048385,-500.0,0.00013698,2]
[352982716,1739475048396,-500.0,0.00013698,2]
[352982718,1739475048406,-500.0,0.00013698,2]
[352982719,1739475048417,-500.0,0.00013698,2]
[352982721,1739475048429,-500.0,0.00013698,2]
[352982723,1739475048439,-500.0,0.00013698,2]
[352982725,1739475048451,-500.0,0.00013698,2]
[352982727,1739475048462,-1522.94,0.00013698,2]
[352982729,1739475048473,-2069.75,0.00013698,2]
[352982731,1739475048487,-502.494849,0.00013698,2]
[352982734,1739475048498,-500.0,0.00013698,2]
[352982736,1739475048520,-500.0,0.00013698,2]
[352982739,1739475048531,-1244.854476,0.00013698,2]
[352982740,1739475048542,-1244.854476,0.00013698,2]
[352982743,1739475048555,-501.57041341,0.00013698,2]
[352982745,1739475048567,-772.53,0.00013698,2]
[352982747,1739475048578,-500.0,0.00013698,2]
[352982749,1739475048590,-500.0,0.00013698,2]
[352982751,1739475048601,-511.85,0.00013698,2]
[352982753,1739475048611,-2656.38,0.00013698,2]
[352982755,1739475048621,-500.0,0.00013698,2]
[352982757,1739475048632,-1294.55,0.00013698,2]
[352982759,1739475048642,-178.000446,0.00013698,2]
[352982761,1739475048654,-1244.854476,0.00013698,2]
[352982763,1739475048666,-178.000446,0.00013698,2]
[352982764,1739475048679,-1244.854476,0.00013698,2]
[352982765,1739475048690,-500.0,0.00013698,2]
[352982766,1739475048701,-1429.9,0.00013698,2]
[352982767,1739475048713,-524.36,0.00013698,2]
[352982768,1739475048724,-178.000446,0.00013698,2]
[352982769,1739475048735,-2577.652306,0.00013698,2]
[352982770,1739475048746,-178.000446,0.00013698,2]
[352982771,1739475048757,-2577.652306,0.00013698,2]
[352982772,1739475048768,-497.42170741,0.00013698,2]
[352982773,1739475048780,-500.0,0.00013698,2]
[352982774,1739475048792,-500.0,0.00013698,2]
[352982775,1739475048804,-1094.44,0.00013698,2]
[352982777,1739475048815,-1329.41,0.00013698,2]
[352982779,1739475048826,-500.0,0.00013698,2]
[352982781,1739475048837,-500.0,0.00013698,2]
[352982783,1739475048847,-2577.652306,0.00013698,2]
[352982785,1739475048856,-2577.652306,0.00013698,2]
[352982787,1739475048866,-1283.0,0.00013698,2]
[352982789,1739475048877,-500.0,0.00013698,2]
[352982791,1739475048887,-697.86,0.00013698,2]
[352982793,1739475048898,-1309.11,0.00013698,2]
[352982795,1739475048908,-2064.23,0.00013698,2]
[352982797,1739475048919,-1583.82,0.00013698,2]
[352982799,1739475048931,-3475.390041,0.00013698,2]
[352982802,1739475048942,-554.8195185,0.00013698,2]
[352982804,1739475048953,-3475.390041,0.00013698,2]
[352982806,1739475048965,-1251.18,0.00013698,2]
[352982808,1739475048975,-501.99975067,0.00013698,2]
[352982810,1739475048986,-547.91,0.00013698,2]
[352982812,1739475048996,-3475.390041,0.00013698,2]
[352982814,1739475049008,-3475.390041,0.00013698,2]
[352982816,1739475049018,-500.0,0.00013698,2]
[352982818,1739475049029,-500.0,0.00013698,2]
[352982820,1739475049042,-4371.78,0.00013698,2]
[352982822,1739475049052,-2869.16,0.00013698,2]
[352982824,1739475049062,-2077.18,0.00013698,2]
[352982826,1739475049073,-881.09,0.00013698,2]
[352982828,1739475049083,-500.0,0.00013698,2]
[352982830,1739475049093,-603.04168732,0.00013698,2]
[352982832,1739475049103,-500.0,0.00013698,2]
[352982834,1739475049114,-500.0,0.00013698,2]
[352982836,1739475049124,-1441.54,0.00013698,2]
[352982838,1739475049134,-900.83,0.00013698,2]
[352982840,1739475049144,-1361.19,0.00013698,2]
[352982842,1739475049155,-500.0,0.00013698,2]
[352982844,1739475049166,-2768.36,0.00013698,2]
[352982845,1739475049176,-500.0,0.00013698,2]
[352982847,1739475049186,-1295.81,0.00013698,2]
[352982849,1739475049196,-1405.83,0.00013698,2]
[352982851,1739475049207,-277.912437,0.00013698,2]
[352982854,1739475049218,-1763.39,0.00013698,2]
[352982855,1739475049229,-277.912437,0.00013698,2]
[352982858,1739475049240,-500.0,0.00013698,2]
[352982860,1739475049251,-1889.55,0.00013698,2]
[352982862,1739475049261,-500.0,0.00013698,2]
[352982864,1739475049272,-277.912437,0.00013698,2]
[352982866,1739475049284,-277.912437,0.00013698,2]
[352982868,1739475049295,-505.26751141,0.00013698,2]
[352982870,1739475049305,-500.0,0.00013698,2]
[352982872,1739475049315,-1150.21,0.00013698,2]
[352982874,1739475049326,-500.0,0.00013698,2]
[352982876,1739475049338,-500.0,0.00013698,2]
[352982878,1739475049350,-529.19754384,0.00013698,2]
[352982880,1739475049361,-500.0,0.00013698,2]
[352982882,1739475049372,-1732.66,0.00013698,2]